fUSD/lending_fUSD_20250502
["ID","MTS","AMOUNT","RATE_DAILY","PERIOD"]
[359648819,1746217843210,-450.0,0.00019719,2]
[359648821,1746217843219,-485.55,0.00019719,2]
[359648823,1746217843229,-450.0,0.00019719,2]
[359648826,1746217843239,-798.07,0.00019719,2]
[359648828,1746217843248,-450.0,0.00019719,2]
[359648829,1746217843258,-629.36,0.00019719,2]
[359648830,1746217843268,-450.0,0.00019719,2]
[359648831,1746217843278,-450.0,0.00019719,2]
[359648832,1746217843288,-450.0,0.00019719,2]
[359648833,1746217843298,-564.99,0.00019719,2]
[359648834,1746217843307,-450.0,0.00019719,2]
[359648835,1746217843317,-450.0,0.00019719,2]
[359648836,1746217843327,-608.33,0.00019719,2]
[359648837,1746217843337,-450.0,0.00019719,2]
[359648838,1746217843346,-450.0,0.00019719,2]
[359648839,1746217843355,-450.0,0.00019719,2]
[359648840,1746217843365,-450.0,0.00019719,2]
[359648841,1746217843375,-450.0,0.00019719,2]
[359648842,1746217843384,-471.53,0.00019719,2]
[359648843,1746217843394,-537.23,0.00019719,2]
[359648844,1746217843403,-450.0,0.00019719,2]
[359648845,1746217843413,-610.67,0.00019719,2]
[359648846,1746217843422,-450.0,0.00019719,2]
[359648847,1746217843432,-450.0,0.00019719,2]
[359648848,1746217843442,-450.0,0.00019719,2]
[359648849,1746217843452,-450.0,0.00019719,2]
[359648850,1746217843462,-655.08,0.00019719,2]
[359648851,1746217843472,-219.28933762,0.00019719,2]
[359648852,1746217843481,-450.0,0.00019719,2]
[359648853,1746217843491,-1908.79,0.00019719,2]
[359648854,1746217843500,-450.0,0.00019719,2]
[359648855,1746217843510,-450.0,0.00019719,2]
[359648856,1746217843520,-450.0,0.00019719,2]
[359648857,1746217843529,-450.0,0.00019719,2]
[359648858,1746217843539,-607.36,0.00019719,2]
[359648859,1746217843548,-655.32,0.00019719,2]
[359648860,1746217843558,-781.98,0.00019719,2]
[359648861,1746217843567,-450.0,0.00019719,2]
[359648862,1746217843577,-450.0,0.00019719,2]
[359648863,1746217843587,-791.52,0.00019719,2]
[359648864,1746217843597,-587.9,0.00019719,2]
[359648865,1746217843608,-450.0,0.00019719,2]
[359648866,1746217843617,-450.0,0.00019719,2]
[359648867,1746217843627,-845.97,0.00019719,2]
[359648868,1746217843637,-282.44482249,0.00019719,2]
[359648869,1746217843647,-450.0,0.00019719,2]
[359648870,1746217843657,-450.0,0.00019719,2]
[359648871,1746217843666,-450.0,0.00019719,2]
[359648872,1746217843676,-698.66,0.00019719,2]
[359648873,1746217843686,-461.54,0.00019719,2]
[359648874,1746217843695,-450.0,0.00019719,2]
[359648875,1746217843705,-525.24,0.00019719,2]
[359648876,1746217843715,-226.52449439,0.00019719,2]
[359648877,1746217843725,-450.0,0.00019719,2]
[359648878,1746217843735,-450.0,0.00019719,2]
[359648880,1746217843745,-450.0,0.00019719,2]
[359648882,1746217843754,-450.0,0.00019719,2]
[359648883,1746217843764,-1234.52,0.00019719,2]
[359648885,1746217843774,-450.0,0.00019719,2]
[359648886,1746217843783,-450.0,0.00019719,2]
[359648887,1746217843793,-450.0,0.00019719,2]
[359648888,1746217843802,-450.0,0.00019719,2]
[359648890,1746217843811,-450.0,0.00019719,2]
[359648891,1746217843820,-450.0,0.00019719,2]
[359648892,1746217843830,-892.53,0.00019719,2]
[359648893,1746217843842,-450.0,0.00019719,2]
[359648894,1746217843852,-450.0,0.00019719,2]
[359648895,1746217843862,-457.08,0.00019719,2]
[359648896,1746217843872,-450.0,0.00019719,2]
[359648897,1746217843884,-479.878237,0.00019719,2]
[359648898,1746217843893,-450.0,0.00019719,2]
[359648900,1746217843903,-597.29392894,0.00019719,2]
[359648901,1746217843912,-1011.96,0.00019719,2]
[359648902,1746217843922,-450.0,0.00019719,2]
[359648903,1746217843931,-450.0,0.00019719,2]
[359648904,1746217843941,-3973.35,0.00019719,2]
[359648905,1746217843952,-450.0,0.00019719,2]
[359648906,1746217843962,-854.26,0.00019719,2]
[359648907,1746217843971,-450.0,0.00019719,2]
[359648908,1746217843981,-1274.2,0.00019719,2]
[359648909,1746217843991,-450.0,0.00019719,2]
[359648910,1746217844000,-450.0,0.00019719,2]
[359648911,1746217844010,-450.0,0.00019719,2]
[359648912,1746217844019,-497.76,0.00019719,2]
[359648913,1746217844029,-4582.09,0.00019719,2]
[359648914,1746217844038,-450.0,0.00019719,2]
[359648915,1746217844048,-450.0,0.00019719,2]
[359648916,1746217844057,-450.0,0.00019719,2]
[359648917,1746217844067,-4207.35,0.00019719,2]
[359648918,1746217844077,-616.57,0.00019719,2]
[359648919,1746217844087,-504.41864297,0.00019719,2]
[359648920,1746217844096,-566.26,0.00019719,2]
[359648921,1746217844106,-450.0,0.00019719,2]
[359648922,1746217844115,-657.73,0.00019719,2]
[359648923,1746217844125,-508.53,0.00019719,2]
[359648924,1746217844136,-1679.64,0.00019719,2]
[359648925,1746217844145,-509.35,0.00019719,2]
[359648926,1746217844155,-450.0,0.00019719,2]
[359648927,1746217844164,-1096.67,0.00019719,2]
[359648928,1746217844173,-488.59,0.00019719,2]
[359648929,1746217844183,-692.54,0.00019719,2]
[359648930,1746217844192,-450.0,0.00019719,2]
[359648931,1746217844201,-491.33,0.00019719,2]
[359648932,1746217844210,-450.0,0.00019719,2]
[359648933,1746217844219,-450.0,0.00019719,2]
[359648934,1746217844229,-4522.28,0.00019719,2]
[359648935,1746217844239,-450.0,0.00019719,2]
[359648936,1746217844248,-524.4,0.00019719,2]
[359648937,1746217844258,-237.0578191,0.00019719,2]
[359648938,1746217844268,-450.0,0.00019719,2]
[359648939,1746217844279,-450.0,0.00019719,2]
[359648940,1746217844288,-92675.97,0.00019719,2]
[359648941,1746217844297,-450.0,0.00019719,2]
[359648942,1746217844307,-450.0,0.00019719,2]
[359648943,1746217844317,-450.0,0.00019719,2]
[359648944,1746217844327,-5388.74,0.00019719,2]
[359648945,1746217844336,-640.27,0.00019719,2]
[359648946,1746217844346,-450.0,0.00019719,2]
[359648947,1746217844355,-30037.28,0.00019719,2]
[359648948,1746217844364,-300.0,0.00019719,2]
[359648949,1746217844375,-450.0,0.00019719,2]
[359648950,1746217844384,-911.99,0.00019719,2]
[359648951,1746217844393,-450.0,0.00019719,2]
[359648952,1746217844404,-1950.51,0.00019719,2]
[359648953,1746217844414,-695.85,0.00019719,2]
[359648955,1746217844425,-450.0,0.00019719,2]
[359648957,1746217844435,-450.0,0.00019719,2]
[359648958,1746217844445,-450.0,0.00019719,2]
[359648959,1746217844455,-16828.51,0.00019719,2]
[359648960,1746217844464,-450.0,0.00019719,2]
[359648961,1746217844474,-573.02,0.00019719,2]
[359648962,1746217844484,-450.0,0.00019719,2]
[359648963,1746217844493,-450.0,0.00019719,2]
[359648964,1746217844502,-450.0,0.00019719,2]
[359648965,1746217844512,-500.0,0.00019719,2]
[359648966,1746217844522,-450.0,0.00019719,2]
[359648967,1746217844532,-450.0,0.00019719,2]
[359648968,1746217844541,-450.0,0.00019719,2]
[359648969,1746217844550,-2514.64,0.00019719,2]
[359648970,1746217844560,-450.0,0.00019719,2]
[359648971,1746217844570,-471.29,0.00019719,2]
[359648972,1746217844580,-450.0,0.00019719,2]
[359648973,1746217844590,-450.0,0.00019719,2]
[359648974,1746217844600,-1100.32,0.00019719,2]
[359648975,1746217844609,-450.0,0.00019719,2]
[359648976,1746217844619,-994.06,0.00019719,2]
[359648977,1746217844630,-450.0,0.00019719,2]
[359648978,1746217844639,-450.0,0.00019719,2]
[359648979,1746217844649,-450.0,0.00019719,2]
[359648980,1746217844659,-551.31,0.00019719,2]
[359648981,1746217844668,-450.0,0.00019719,2]
[359648982,1746217844678,-832.02,0.00019719,2]
[359648983,1746217844688,-2761.53,0.00019719,2]
[359648984,1746217844698,-450.0,0.00019719,2]
[359648985,1746217844710,-2296.46,0.00019719,2]
[359648986,1746217844719,-450.0,0.00019719,2]
[359648987,1746217844736,-450.0,0.00019719,2]
[359648988,1746217844745,-450.0,0.00019719,2]
[359648989,1746217844755,-450.0,0.00019719,2]
[359648990,1746217844764,-500.0,0.00019719,2]
[359648991,1746217844774,-500.0,0.00019719,2]
[359648992,1746217844784,-502.73,0.00019719,2]
[359648993,1746217844794,-450.0,0.00019719,2]
[359648994,1746217844803,-450.0,0.00019719,2]
[359648995,1746217844814,-450.0,0.00019719,2]
[359648996,1746217844823,-450.0,0.00019719,2]
[359648997,1746217844833,-1148.63,0.00019719,2]
[359648998,1746217844843,-755.37,0.00019719,2]
[359648999,1746217844853,-450.0,0.00019719,2]
[359649000,1746217844862,-450.0,0.00019719,2]
[359649001,1746217844873,-450.0,0.00019719,2]
[359649002,1746217844883,-450.0,0.00019719,2]
[359649003,1746217844955,-402.27436238,0.00019719,2]
[359649004,1746217844965,-450.0,0.00019719,2]
[359649005,1746217844975,-1193.52,0.00019719,2]
[359649006,1746217844985,-716.79,0.00019719,2]
[359649007,1746217844995,-450.0,0.0001972,2]
[359649008,1746217845004,-450.0,0.0001972,2]
[359649009,1746217845014,-450.0,0.0001972,2]
[359649010,1746217845023,-450.0,0.0001972,2]
[359649011,1746217845033,-450.0,0.0001972,2]
[359649012,1746217845043,-450.0,0.0001972,2]
[359649013,1746217845052,-450.0,0.0001972,2]
[359649014,1746217845063,-560.05773253,0.0001972,2]
[359649015,1746217845072,-450.0,0.0001972,2]
[359649016,1746217845083,-450.0,0.0001972,2]
[359649017,1746217845092,-450.0,0.0001972,2]
[359649018,1746217845102,-574.35,0.0001972,2]
[359649019,1746217845111,-500.0,0.00019721,2]
[359649020,1746217845121,-150.38905316,0.00019721,2]
[359649021,1746217845131,-500.0,0.00019721,2]
[359649022,1746217845141,-441.0,0.00019721,2]
[359649023,1746217845151,-500.0,0.00019721,2]
[359649024,1746217845160,-500.0,0.00019721,2]
[359649025,1746217845170,-500.0,0.00019721,2]
[359649026,1746217845179,-500.0,0.00019721,2]
[359649027,1746217845189,-150.97981124,0.00019721,2]
[359649028,1746217845199,-500.0,0.00019721,2]
[359649029,1746217845209,-150.0,0.00019721,2]
[359649030,1746217845219,-500.0,0.00019721,2]
[359649031,1746217845230,-500.0,0.00019721,2]
[359649032,1746217845241,-155.27013893,0.00019721,2]
[359649033,1746217845251,-500.0,0.00019721,2]
[359649034,1746217845262,-150.0,0.00019721,2]
[359649035,1746217845272,-437.0,0.00019721,2]
[359649036,1746217845282,-151.09399251,0.00019721,2]
[359649037,1746217845291,-150.96083992,0.00019721,2]
[359649038,1746217845302,-150.0,0.00019721,2]
[359649039,1746217845311,-150.79274051,0.00019721,2]
[359649040,1746217845322,-154.54925283,0.00019721,2]
[359649041,1746217845332,-500.0,0.00019721,2]
[359649042,1746217845342,-150.0,0.00019721,2]
[359649043,1746217845352,-500.0,0.00019721,2]
[359649044,1746217845362,-162.90455588,0.00019731,2]
[359649045,1746217845372,-1567.12085034,0.00019744,2]
[359649046,1746217845383,-42333.55907963,0.0001975,2]
[359649047,1746217845393,-155.96257902,0.00019756,2]
[359649048,1746217845403,-12500.0,0.00019768,2]
[359649049,1746217845416,-500.0,0.00019773,2]
[359649050,1746217845426,-368.87036061,0.00019773,2]
[359649051,1746217845436,-505.12152298,0.00019773,2]
[359649052,1746217845445,-500.0,0.00019773,2]
[359649053,1746217845455,-500.0,0.00019773,2]
[359649054,1746217845465,-515.34803,0.00019773,2]
[359649055,1746217845475,-500.0,0.00019773,2]
[359649056,1746217845485,-500.0,0.00019773,2]
[359649057,1746217845495,-500.0,0.00019773,2]
[359649058,1746217845504,-162.15598987,0.00019773,2]
[359649059,1746217845513,-500.0,0.00019773,2]
[359649060,1746217845522,-650.0,0.00019773,2]
[359649061,1746217845532,-500.0,0.00019773,2]
[359649062,1746217845543,-500.0,0.00019773,2]
[359649063,1746217845552,-500.0,0.00019773,2]
[359649064,1746217845562,-500.0,0.00019773,2]
[359649065,1746217845572,-500.0,0.00019773,2]
[359649066,1746217845581,-1567.12085034,0.00019775,2]
[359649067,1746217845591,-12500.0,0.00019777,2]
[359649068,1746217845602,-12500.0,0.00019786,2]
[359649069,1746217845612,-162.90455588,0.00019788,2]
[359649070,1746217845621,-12500.0,0.00019794,2]
[359649071,1746217845632,-992.8407002,0.00019799,2]
[359649072,1746217845641,-12500.0,0.00019803,2]
[359649073,1746217845651,-1567.12085034,0.00019806,2]
[359649074,1746217845661,-12500.0,0.00019812,2]
[359649075,1746217845670,-12500.0,0.00019821,2]
[359649076,1746217845680,-12500.0,0.0001983,2]
[359649077,1746217845690,-1567.12085034,0.00019838,2]
[359649078,1746217845699,-228.25178427,0.00019838,2]
[359649079,1746217845710,-12500.0,0.00019838,2]
[359649080,1746217845720,-500.0,0.0001984,2]
[359649081,1746217845730,-2000.0,0.0001984,2]
[359649082,1746217845739,-200.0,0.0001984,2]
[359649083,1746217845749,-162.90455588,0.00019844,2]
[359649084,1746217845758,-12500.0,0.00019847,2]
[359649085,1746217845769,-12500.0,0.00019856,2]
[359649086,1746217845778,-151.0,0.0001986,2]
[359649087,1746217845787,-151.0,0.0001986,2]
[359649088,1746217845797,-151.0,0.0001986,2]
[359649089,1746217845806,-151.0,0.0001986,2]
[359649090,1746217845815,-151.0,0.00019863,2]
[359649091,1746217845825,-12500.0,0.00019865,2]
[359649092,1746217845834,-1567.12085034,0.00019869,2]
[359649093,1746217845844,-500.0,0.00019873,2]
[359649094,1746217845855,-12500.0,0.00019874,2]
[359649095,1746217845864,-12500.0,0.00019882,2]
[359649096,1746217845879,-3251.41085204,0.00019889,2]
[359649097,1746217845888,-12500.0,0.00019891,2]
[359649098,1746217845897,-12500.0,0.000199,2]
[359649099,1746217845907,-370.84516044,0.000199,2]
[359649100,1746217845917,-156.1779241,0.000199,2]
[359649101,1746217845927,-2052.10016354,0.000199,2]
[359649102,1746217845937,-28559.79043473,0.000199,2]
[359649103,1746217845946,-495.71971184,0.000199,2]
[359649104,1746217845957,-2743.91594593,0.000199,2]
[359649105,1746217845968,-3014.72115016,0.000199,3]
[359649106,1746217845978,-162.90455588,0.000199,2]
[359649107,1746217845988,-593.72698697,0.000199,2]
[359649108,1746217845999,-584.41120523,0.000199,2]
[359649109,1746217846010,-1567.12085034,0.000199,2]
[359649110,1746217846020,-171.70756229,0.000199,3]
[359649111,1746217846029,-44472.02904675,0.000199,2]
[359649112,1746217846039,-156.63736674,0.000199,2]
[359649113,1746217846048,-1310.89372494,0.000199,2]
[359649114,1746217846057,-2956.383,0.00019912,2]
[359649115,1746217846066,-196.572,0.00019912,2]
[359649116,1746217846075,-151.0,0.00019943,2]
[359649117,1746217846086,-797.0,0.00019949,2]
[359649118,1746217846096,-1207.0,0.00019949,2]
[359649119,1746217846106,-914.0,0.00019949,2]
[359649120,1746217846117,-548.0,0.00019949,2]
[359649121,1746217846127,-413.779,0.00019949,2]
[359649122,1746217846136,-581.0,0.00019949,2]
[359649123,1746217846145,-4006.0,0.00019949,2]
[359649124,1746217846155,-153.0,0.00019949,2]
[359649125,1746217846164,-1391.397,0.00019949,2]
[359649126,1746217846174,-6753.0,0.00019949,2]
[359649127,1746217846184,-207.4,0.00019953,2]
[359649128,1746217846193,-151.0,0.00019954,2]
[359649129,1746217846203,-151.0,0.00019954,2]
[359649130,1746217846214,-668.65185757,0.00019954,2]
[359649131,1746217846225,-151.0,0.00019954,2]
[359649132,1746217846235,-514.0,0.0001997,2]
[359649133,1746217846244,-920.0,0.00019973,2]
[359649134,1746217846253,-24257.0,0.00019973,2]
[359649135,1746217846263,-500.0,0.00019973,2]
[359649136,1746217846272,-606.40594085,0.00019973,2]
[359649137,1746217846282,-500.0,0.00019973,2]
[359649138,1746217846291,-500.0,0.00019973,2]
[359649139,1746217846301,-500.0,0.00019973,2]
[359649140,1746217846310,-501.74607688,0.00019973,2]
[359649141,1746217846320,-500.0,0.00019973,2]
[359649142,1746217846330,-500.0,0.00019973,2]
[359649143,1746217846339,-500.0,0.00019973,2]
[359649144,1746217846349,-500.0,0.00019973,2]
[359649145,1746217846359,-500.0,0.00019973,2]
[359649146,1746217846368,-160.1305096,0.00019973,2]
[359649147,1746217846378,-500.0,0.00019973,2]
[359649148,1746217846388,-500.0,0.00019973,2]
[359649149,1746217846398,-302.52572163,0.00019973,2]
[359649150,1746217846409,-538.7932649,0.00019973,2]
[359649151,1746217846418,-243.25265261,0.00019973,2]
[359649152,1746217846427,-500.0,0.00019973,2]
[359649153,1746217846438,-500.0,0.00019973,2]
[359649154,1746217846448,-152.56461415,0.00019973,2]
[359649155,1746217846457,-517.08214642,0.00019973,2]
[359649156,1746217846467,-500.0,0.00019973,2]
[359649157,1746217846477,-505.11388319,0.00019973,2]
[359649158,1746217846487,-500.0,0.00019973,2]
[359649159,1746217846497,-36943.72609916,0.0001998,2]
[359649160,1746217846507,-1074.92705239,0.00019982,2]
[359649161,1746217846516,-500.0,0.00019985,2]
[359649162,1746217846526,-500.0,0.00019985,2]
[359649163,1746217846535,-1074.92705239,0.0001999,2]
[359649164,1746217846545,-1074.92705239,0.0001999,2]
[359649165,1746217846556,-450.0,0.00019992,2]
[359649166,1746217846566,-675.99,0.00019992,2]
[359649167,1746217846576,-450.0,0.00019992,2]
[359649168,1746217846585,-450.0,0.00019992,2]
[359649169,1746217846596,-450.0,0.00019992,2]
[359649170,1746217846606,-450.0,0.00019992,2]
[359649171,1746217846615,-450.0,0.00019992,2]
[359649172,1746217846625,-298.56431226,0.00019992,2]
[359649173,1746217846636,-450.0,0.00019992,2]
[359649174,1746217846646,-450.0,0.00019992,2]
[359649175,1746217846655,-450.0,0.00019992,2]
[359649176,1746217846665,-450.0,0.00019992,2]
[359649177,1746217846674,-450.0,0.00019992,2]
[359649178,1746217846683,-450.0,0.00019992,2]
[359649179,1746217846693,-450.0,0.00019992,2]
[359649180,1746217846702,-955.3,0.00019992,2]
[359649181,1746217846712,-450.0,0.00019992,2]
[359649182,1746217846721,-450.0,0.00019992,2]
[359649183,1746217846731,-450.0,0.00019992,2]
[359649184,1746217846741,-450.0,0.00019992,2]
[359649185,1746217846751,-450.0,0.00019992,2]
[359649186,1746217846761,-450.0,0.00019992,2]
[359649187,1746217846771,-450.0,0.00019992,2]
[359649188,1746217846780,-733.13,0.00019992,2]
[359649189,1746217846790,-450.0,0.00019992,2]
[359649190,1746217846799,-450.0,0.00019992,2]
[359649191,1746217846809,-450.0,0.00019992,2]
[359649192,1746217846818,-450.0,0.00019992,2]
[359649193,1746217846828,-450.0,0.00019992,2]
[359649194,1746217846837,-450.0,0.00019992,2]
[359649195,1746217846846,-450.0,0.00019992,2]
[359649196,1746217846855,-467.95,0.00019992,2]
[359649197,1746217846865,-450.0,0.00019992,2]
[359649199,1746217846876,-450.0,0.00019992,2]
[359649200,1746217846886,-477.67,0.00019992,2]
[359649201,1746217846896,-450.0,0.00019992,2]
[359649202,1746217846905,-450.0,0.00019992,2]
[359649203,1746217846914,-450.0,0.00019992,2]
[359649204,1746217846925,-450.0,0.00019992,2]
[359649205,1746217846934,-450.0,0.00019992,2]
[359649206,1746217846944,-450.0,0.00019992,2]
[359649207,1746217846953,-450.0,0.00019992,2]
[359649208,1746217846963,-450.0,0.00019992,2]
[359649209,1746217846973,-450.0,0.00019992,2]
[359649210,1746217846983,-450.0,0.00019992,2]
[359649211,1746217846992,-450.0,0.00019992,2]
[359649212,1746217847001,-450.0,0.00019992,2]
[359649213,1746217847010,-450.0,0.00019992,2]
[359649214,1746217847019,-894.130531,0.00019992,2]
[359649215,1746217847028,-632.544365,0.00019992,2]
[359649216,1746217847038,-450.0,0.00019992,2]
[359649217,1746217847047,-571.99,0.00019992,2]
[359649218,1746217847056,-450.0,0.00019992,2]
[359649219,1746217847066,-450.0,0.00019992,2]
[359649220,1746217847076,-463.43,0.00019992,2]
[359649221,1746217847085,-450.0,0.00019992,2]
[359649222,1746217847095,-450.0,0.00019992,2]
[359649223,1746217847104,-781.54,0.00019992,2]
[359649224,1746217847114,-450.0,0.00019992,2]
[359649225,1746217847123,-450.0,0.00019992,2]
[359649226,1746217847133,-450.0,0.00019992,2]
[359649227,1746217847143,-8210.44,0.00019992,2]
[359649228,1746217847153,-380.38508656,0.00019992,2]
[359649229,1746217847162,-450.0,0.00019992,2]
[359649230,1746217847171,-569.07,0.00019992,2]
[359649231,1746217847180,-450.0,0.00019992,2]
[359649232,1746217847190,-450.0,0.00019992,2]
[359649233,1746217847200,-450.0,0.00019992,2]
[359649234,1746217847210,-450.0,0.00019992,2]
[359649235,1746217847219,-450.0,0.00019992,2]
[359649236,1746217847229,-450.0,0.00019992,2]
[359649237,1746217847238,-450.0,0.00019992,2]
[359649238,1746217847247,-458.48,0.00019992,2]
[359649239,1746217847257,-450.0,0.00019992,2]
[359649240,1746217847266,-987.32,0.00019992,2]
[359649241,1746217847276,-6326.37,0.00019992,2]
[359649242,1746217847287,-1042.83,0.00019992,2]
[359649243,1746217847299,-450.0,0.00019992,2]
[359649244,1746217847309,-450.0,0.00019992,2]
[359649245,1746217847319,-450.0,0.00019992,2]
[359649246,1746217847328,-450.0,0.00019992,2]
[359649247,1746217847337,-186.59084408,0.00019992,2]
[359649248,1746217847346,-450.0,0.00019992,2]
[359649249,1746217847355,-450.0,0.00019992,2]
[359649250,1746217847365,-450.0,0.00019992,2]
[359649251,1746217847374,-113908.83,0.00019992,2]
[359649252,1746217847383,-490.67,0.00019992,2]
[359649253,1746217847393,-450.0,0.00019992,2]
[359649254,1746217847402,-576.18,0.00019992,2]
[359649255,1746217847411,-450.0,0.00019992,2]
[359649256,1746217847420,-450.0,0.00019992,2]
[359649257,1746217847430,-450.0,0.00019992,2]
[359649258,1746217847439,-450.0,0.00019992,2]
[359649259,1746217847448,-482.91,0.00019992,2]
[359649260,1746217847458,-450.0,0.00019992,2]
[359649261,1746217847467,-472.65,0.00019992,2]
[359649262,1746217847477,-624.95,0.00019992,2]
[359649263,1746217847486,-450.0,0.00019992,2]
[359649264,1746217847496,-458.3,0.00019992,2]
[359649265,1746217847505,-544.82,0.00019992,2]
[359649266,1746217847514,-553.69,0.00019992,2]
[359649267,1746217847523,-450.0,0.00019992,2]
[359649268,1746217847533,-724.04,0.00019992,2]
[359649269,1746217847542,-487.74,0.00019992,2]
[359649270,1746217847552,-450.0,0.00019992,2]
[359649271,1746217847562,-625.67874033,0.00019992,2]
[359649272,1746217847571,-450.0,0.00019992,2]
[359649273,1746217847580,-2369.61,0.00019992,2]
[359649274,1746217847590,-450.0,0.00019992,2]
[359649275,1746217847599,-562.69,0.00019992,2]
[359649276,1746217847609,-450.0,0.00019992,2]
[359649277,1746217847618,-450.0,0.00019992,2]
[359649278,1746217847627,-562.81,0.00019992,2]
[359649279,1746217847637,-450.0,0.00019992,2]
[359649280,1746217847646,-450.0,0.00019992,2]
[359649281,1746217847656,-450.0,0.00019992,2]
[359649282,1746217847666,-450.0,0.00019992,2]
[359649283,1746217847675,-489.03,0.00019992,2]
[359649284,1746217847684,-450.0,0.00019992,2]
[359649285,1746217847694,-522.33,0.00019992,2]
[359649286,1746217847705,-5218.71,0.00019992,2]
[359649287,1746217847714,-450.0,0.00019992,2]
[359649288,1746217847724,-516.0,0.00019992,2]
[359649289,1746217847734,-450.0,0.00019992,2]
[359649290,1746217847743,-1068.42,0.00019992,2]
[359649291,1746217847754,-459.57,0.00019992,2]
[359649292,1746217847764,-555.5,0.00019992,2]
[359649293,1746217847773,-544.36,0.00019992,2]
[359649294,1746217847782,-1171.41,0.00019992,2]
[359649295,1746217847791,-3227.65,0.00019992,2]
[359649296,1746217847800,-450.0,0.00019992,2]
[359649297,1746217847809,-450.0,0.00019992,2]
[359649298,1746217847818,-1875.44,0.00019992,2]
[359649299,1746217847827,-450.0,0.00019992,2]
[359649300,1746217847837,-450.0,0.00019992,2]
[359649301,1746217847846,-450.0,0.00019992,2]
[359649302,1746217847855,-450.0,0.00019992,2]
[359649303,1746217847865,-482.84,0.00019992,2]
[359649304,1746217847875,-522.39,0.00019992,2]
[359649305,1746217847885,-450.0,0.00019992,2]
[359649306,1746217847895,-450.0,0.00019992,2]
[359649307,1746217847906,-793.61,0.00019992,2]
[359649308,1746217847917,-450.0,0.00019992,2]
[359649309,1746217847927,-450.0,0.00019992,2]
[359649310,1746217847937,-450.0,0.00019992,2]
[359649311,1746217847946,-616.88,0.00019992,2]
[359649312,1746217847958,-550.89,0.00019992,2]
[359649313,1746217847967,-450.0,0.00019992,2]
[359649314,1746217847978,-450.0,0.00019992,2]
[359649315,1746217847988,-1626.07,0.00019992,2]
[359649316,1746217847998,-450.0,0.00019992,2]
[359649317,1746217848007,-1505.27,0.00019992,2]
[359649318,1746217848016,-1080.47,0.00019992,2]
[359649319,1746217848026,-1727.01,0.00019992,2]
[359649320,1746217848035,-450.0,0.00019992,2]
[359649321,1746217848044,-739.49,0.00019992,2]
[359649322,1746217848053,-450.0,0.00019992,2]
[359649323,1746217848063,-450.0,0.00019992,2]
[359649324,1746217848072,-450.0,0.00019992,2]
[359649325,1746217848081,-1726.33,0.00019992,2]
[359649326,1746217848091,-822.15,0.00019992,2]
[359649327,1746217848100,-544.22,0.00019992,2]
[359649328,1746217848109,-450.0,0.00019992,2]
[359649329,1746217848119,-450.0,0.00019992,2]
[359649330,1746217848130,-1722.0,0.00019993,2]
[359649331,1746217848141,-450.0,0.00019993,2]